[Event "NM-Senior Hurtig 2018"]
[Site "Frimurer Logen, Norway"]
[Date "2018.11.10"]
[Round "1.1"]
[White "Bjerke, Richard"]
[Black "Ugland, Torge"]
[Result "1-0"]
[TimeControl "20 + 10"]
[WhiteElo "2094"]
[BlackElo "1646"]

1. d4 {[%clk 00:20:05]} {[%emt 00:00:03]} d5 {[%clk 00:20:08]} {[%emt
00:00:03]} 2. Nf3 {[%clk 00:20:06]} {[%emt 00:00:08]} Nf6 {[%clk 00:20:15]}
{[%emt 00:00:04]} 3. c4 {[%clk 00:20:13]} {[%emt 00:00:02]} e6 {[%clk
00:20:19]} {[%emt 00:00:07]} 4. g3 {[%clk 00:20:17]} {[%emt 00:00:05]} c6
{[%clk 00:19:25]} {[%emt 00:01:05]} 5. Bg2 {[%clk 00:20:04]} {[%emt 00:00:21]}
Nbd7 {[%clk 00:18:48]} {[%emt 00:00:49]} 6. Qc2 {[%clk 00:19:54]} {[%emt
00:00:20]} Bd6 {[%clk 00:17:46]} {[%emt 00:01:12]} 7. O-O {[%clk 00:19:34]}
{[%emt 00:00:30]} O-O {[%clk 00:17:10]} {[%emt 00:00:47]} 8. Nbd2 {[%clk
00:17:45]} {[%emt 00:01:58]} Re8 {[%clk 00:16:37]} {[%emt 00:00:44]} 9. e4
{[%clk 00:17:06]} {[%emt 00:00:49]} dxe4 {[%clk 00:16:38]} {[%emt 00:00:09]} 10.
Nxe4 {[%clk 00:16:29]} {[%emt 00:00:48]} Nxe4 {[%clk 00:16:34]} {[%emt
00:00:14]} 11. Qxe4 {[%clk 00:16:36]} {[%emt 00:00:03]} Nf6 {[%clk 00:15:40]}
{[%emt 00:01:05]} 12. Qe2 {[%clk 00:16:06]} {[%emt 00:00:38]} c5 {[%clk
00:14:24]} {[%emt 00:01:28]} 13. Rd1 {[%clk 00:15:07]} {[%emt 00:01:07]} cxd4
{[%clk 00:13:50]} {[%emt 00:00:44]} 14. Nxd4 {[%clk 00:14:37]} {[%emt
00:00:41]} a6 {[%clk 00:11:52]} {[%emt 00:02:09]} 15. Bg5 {[%clk 00:11:03]}
{[%emt 00:03:42]} h6 {[%clk 00:09:33]} {[%emt 00:02:29]} 16. Bxf6 {[%clk
00:07:45]} {[%emt 00:03:29]} Qxf6 {[%clk 00:09:30]} {[%emt 00:00:12]} 17. Nb3
{[%clk 00:07:39]} {[%emt 00:00:17]} e5 {[%clk 00:08:33]} {[%emt 00:01:07]} 18.
c5 {[%clk 00:07:36]} {[%emt 00:00:12]} Bc7 {[%clk 00:08:19]} {[%emt 00:00:26]}
19. Nd2 {[%clk 00:06:13]} {[%emt 00:01:31]} Rb8 {[%clk 00:08:06]} {[%emt
00:00:24]} 20. Rac1 {[%clk 00:05:45]} {[%emt 00:00:37]} Rd8 {[%clk 00:07:41]}
{[%emt 00:00:36]} 21. Ne4 {[%clk 00:05:33]} {[%emt 00:00:21]} Rxd1+ {[%clk
00:07:40]} {[%emt 00:00:11]} 22. Rxd1 {[%clk 00:05:32]} {[%emt 00:00:12]} Qe7
{[%clk 00:07:34]} {[%emt 00:00:17]} 23. b4 {[%clk 00:05:27]} {[%emt 00:00:15]}
b6 {[%clk 00:06:00]} {[%emt 00:01:44]} 24. Nd6 {[%clk 00:05:10]} {[%emt
00:00:26]} bxc5 {[%clk 00:05:22]} {[%emt 00:00:48]} 25. bxc5 {[%clk 00:04:18]}
{[%emt 00:01:02]} a5 {[%clk 00:04:56]} {[%emt 00:00:36]} 26. h4 {[%clk
00:04:03]} {[%emt 00:00:24]} Bxd6 {[%clk 00:02:29]} {[%emt 00:02:38]} 27. cxd6
{[%clk 00:04:08]} {[%emt 00:00:05]} Qe6 {[%clk 00:02:30]} {[%emt 00:00:09]} 28.
Bd5 {[%clk 00:03:51]} {[%emt 00:00:27]} Qe8 {[%clk 00:02:30]} {[%emt 00:00:10]}
29. Rc1 {[%clk 00:03:02]} {[%emt 00:00:58]} Bd7 {[%clk 00:02:37]} {[%emt
00:00:04]} 30. Rc7 {[%clk 00:02:44]} {[%emt 00:00:27]} Rc8 {[%clk 00:01:51]}
{[%emt 00:00:58]} 31. Qa6 {[%clk 00:01:48]} {[%emt 00:01:04]} Rxc7 {[%clk
00:01:36]} {[%emt 00:00:26]} 32. dxc7 {[%clk 00:01:57]} {[%emt 00:00:02]} Qc8
{[%clk 00:00:16]} {[%emt 00:01:29]} 33. Qxa5 {[%clk 00:01:57]} {[%emt
00:00:10]} g6 {[%clk 00:00:18]} {[%emt 00:00:08]} 34. Qb6 {[%clk 00:01:55]}
{[%emt 00:00:12]} Kg7 {[%clk 00:00:17]} {[%emt 00:00:11]} 35. Qb8 {[%clk
00:01:19]} {[%emt 00:00:46]} h5 {[%emt 00:00:20]} 1-0

[Event "NM-Senior Hurtig 2018"]
[Site "Frimurer Logen, Norway"]
[Date "2018.11.10"]
[Round "1.3"]
[White "Johansen, Kai Roger"]
[Black "Wister, Finn Arild"]
[Result "1-0"]
[TimeControl "20 + 10"]
[WhiteElo "1615"]
[BlackElo "1510"]

1. Nf3 {[%clk 00:20:05]} {[%emt 00:00:04]} Nf6 {[%clk 00:20:01]} {[%emt
00:00:09]} 2. d4 {[%clk 00:19:57]} {[%emt 00:00:18]} d5 {[%clk 00:20:01]}
{[%emt 00:00:11]} 3. Bf4 {[%clk 00:19:48]} {[%emt 00:00:18]} g6 {[%clk
00:19:52]} {[%emt 00:00:19]} 4. e3 {[%clk 00:19:45]} {[%emt 00:00:14]} Bg7
{[%clk 00:19:31]} {[%emt 00:00:31]} 5. Be2 {[%clk 00:19:45]} {[%emt 00:00:09]}
c5 {[%clk 00:19:11]} {[%emt 00:00:31]} 6. O-O {[%clk 00:19:44]} {[%emt
00:00:12]} cxd4 {[%clk 00:18:51]} {[%emt 00:00:30]} 7. exd4 {[%clk 00:19:36]}
{[%emt 00:00:17]} O-O {[%clk 00:18:36]} {[%emt 00:00:25]} 8. c3 {[%clk
00:19:29]} {[%emt 00:00:17]} Nc6 {[%clk 00:17:30]} {[%emt 00:01:16]} 9. Nbd2
{[%clk 00:17:32]} {[%emt 00:02:07]} Bf5 {[%clk 00:16:20]} {[%emt 00:01:19]} 10.
Ne5 {[%clk 00:16:13]} {[%emt 00:01:30]} Nxe5 {[%clk 00:15:14]} {[%emt
00:01:15]} 11. Bxe5 {[%clk 00:16:12]} {[%emt 00:00:12]} Qd7 {[%clk 00:13:43]}
{[%emt 00:01:41]} 12. Nf3 {[%clk 00:15:28]} {[%emt 00:00:53]} Ng4 {[%clk
00:11:01]} {[%emt 00:02:52]} 13. Bxg7 {[%clk 00:14:35]} {[%emt 00:01:03]} Kxg7
{[%clk 00:11:04]} {[%emt 00:00:08]} 14. h3 {[%clk 00:14:23]} {[%emt 00:00:21]}
Nf6 {[%clk 00:10:21]} {[%emt 00:00:54]} 15. Ne5 {[%clk 00:14:24]} {[%emt
00:00:09]} Qd6 {[%clk 00:10:08]} {[%emt 00:00:23]} 16. Re1 {[%clk 00:12:28]}
{[%emt 00:02:05]} Nd7 {[%clk 00:09:09]} {[%emt 00:01:10]} 17. Bf3 {[%clk
00:11:03]} {[%emt 00:01:35]} f6 {[%clk 00:06:06]} {[%emt 00:03:13]} 18. Ng4
{[%clk 00:07:22]} {[%emt 00:03:50]} e5 {[%clk 00:03:55]} {[%emt 00:02:21]} 19.
dxe5 {[%clk 00:06:47]} {[%emt 00:00:46]} Nxe5 {[%clk 00:03:38]} {[%emt
00:00:27]} 20. Nxe5 {[%clk 00:06:31]} {[%emt 00:00:27]} fxe5 {[%clk 00:03:38]}
{[%emt 00:00:09]} 21. Qxd5 {[%clk 00:06:35]} {[%emt 00:00:06]} Qxd5 {[%clk
00:02:40]} {[%emt 00:01:08]} 22. Bxd5 {[%clk 00:06:39]} {[%emt 00:00:06]} 1-0

[Event "NM-Senior Hurtig 2018"]
[Site "Frimurer Logen, Norway"]
[Date "2018.11.10"]
[Round "1.4"]
[White "Olsen, Trygve"]
[Black "Gyldenås, Ole Jørn"]
[Result "0-1"]
[TimeControl "20 + 10"]
[WhiteElo "1464"]
[BlackElo "1743"]

1. f4 {[%clk 00:20:09]} {[%emt 00:23:57]} d5 {[%clk 00:20:00]} {[%emt
00:00:24]} 2. d4 {[%clk 00:20:17]} {[%emt 00:00:01]} Nf6 {[%clk 00:20:06]}
{[%emt 00:00:04]} 3. Nf3 {[%clk 00:20:25]} {[%emt 00:00:02]} e6 {[%clk
00:19:58]} {[%emt 00:00:18]} 4. e3 {[%clk 00:20:32]} {[%emt 00:00:03]} c5
{[%clk 00:20:07]} {[%emt 00:00:03]} 5. c3 {[%clk 00:20:40]} Be7 {[%clk
00:20:12]} {[%emt 00:00:05]} 6. Be2 {[%clk 00:20:46]} {[%emt 00:00:03]} O-O
{[%clk 00:20:20]} {[%emt 00:00:03]} 7. O-O {[%clk 00:20:54]} b6 {[%clk
00:20:08]} {[%emt 00:00:23]} 8. a4 {[%clk 00:20:57]} {[%emt 00:00:07]} a5
{[%clk 00:20:05]} {[%emt 00:00:13]} 9. Ne5 {[%clk 00:20:23]} {[%emt 00:00:44]}
Bb7 {[%clk 00:19:55]} {[%emt 00:00:21]} 10. Nd2 {[%clk 00:19:52]} {[%emt
00:00:40]} Nbd7 {[%clk 00:20:01]} {[%emt 00:00:04]} 11. Ndf3 {[%clk 00:19:52]}
{[%emt 00:00:11]} Ne4 {[%clk 00:19:56]} {[%emt 00:00:15]} 12. Nxd7 {[%clk
00:19:37]} {[%emt 00:00:25]} Qxd7 {[%clk 00:20:05]} {[%emt 00:00:01]} 13. Ne5
{[%clk 00:19:45]} {[%emt 00:00:02]} Qc7 {[%clk 00:20:00]} {[%emt 00:00:14]} 14.
Bb5 {[%clk 00:19:49]} {[%emt 00:00:07]} Rad8 {[%clk 00:19:48]} {[%emt
00:00:21]} 15. Rf3 {[%clk 00:19:38]} {[%emt 00:00:22]} f6 {[%clk 00:18:55]}
{[%emt 00:01:04]} 16. Nd3 {[%clk 00:19:32]} {[%emt 00:00:15]} c4 {[%clk
00:18:46]} {[%emt 00:00:20]} 17. Nf2 {[%clk 00:19:29]} {[%emt 00:00:13]} Nxf2
{[%clk 00:18:50]} {[%emt 00:00:06]} 18. Rxf2 {[%clk 00:19:34]} {[%emt
00:00:04]} e5 {[%clk 00:18:42]} {[%emt 00:00:18]} 19. Rf3 {[%clk 00:19:11]}
{[%emt 00:00:32]} Bd6 {[%clk 00:18:07]} {[%emt 00:00:46]} 20. f5 {[%clk
00:18:58]} {[%emt 00:00:23]} Bc8 {[%clk 00:17:34]} {[%emt 00:00:43]} 21. Rf2
{[%clk 00:17:41]} {[%emt 00:01:26]} exd4 {[%clk 00:17:09]} {[%emt 00:00:35]} 22.
Qxd4 {[%clk 00:15:57]} {[%emt 00:01:55]} Bxh2+ {[%clk 00:17:13]} {[%emt
00:00:06]} 23. Kh1 {[%clk 00:16:06]} Be5 {[%clk 00:17:09]} {[%emt 00:00:15]} 24.
Qg4 {[%clk 00:16:01]} {[%emt 00:00:14]} Qf7 {[%clk 00:15:13]} {[%emt 00:02:07]}
25. Rf3 {[%clk 00:15:43]} {[%emt 00:00:28]} Kh8 {[%clk 00:14:42]} {[%emt
00:00:41]} 26. Rh3 {[%clk 00:15:30]} {[%emt 00:00:23]} g6 {[%clk 00:14:34]}
{[%emt 00:00:18]} 27. Bd2 {[%clk 00:14:55]} {[%emt 00:00:45]} Bxf5 {[%clk
00:14:37]} {[%emt 00:00:07]} 28. Qh4 {[%clk 00:14:48]} {[%emt 00:00:16]} Bxh3
{[%clk 00:14:29]} {[%emt 00:00:19]} 29. Qxh3 {[%clk 00:14:57]} {[%emt
00:00:01]} f5 {[%clk 00:14:23]} {[%emt 00:00:16]} 30. Rf1 {[%clk 00:15:04]}
{[%emt 00:00:02]} Qg7 {[%clk 00:13:46]} {[%emt 00:00:48]} 31. e4 {[%clk
00:14:42]} {[%emt 00:00:32]} fxe4 {[%clk 00:13:13]} {[%emt 00:00:43]} 32. Rxf8+
{[%clk 00:13:20]} {[%emt 00:01:33]} Rxf8 {[%clk 00:13:07]} {[%emt 00:00:15]} 33.
Be3 {[%clk 00:13:27]} {[%emt 00:00:02]} Rf1+ {[%clk 00:11:41]} {[%emt
00:01:36]} 34. Bg1 {[%clk 00:13:35]} {[%emt 00:00:02]} Rf5 {[%clk 00:11:25]}
{[%emt 00:00:25]} 35. g4 {[%clk 00:12:52]} {[%emt 00:00:53]} Rf3 {[%clk
00:10:53]} {[%emt 00:00:43]} 36. Qh4 {[%clk 00:12:24]} {[%emt 00:00:37]} Qf6
{[%clk 00:08:48]} {[%emt 00:02:16]} 37. Qxf6+ {[%clk 00:11:00]} {[%emt
00:01:34]} Rxf6 {[%clk 00:08:53]} {[%emt 00:00:05]} 38. Kg2 {[%clk 00:11:03]}
{[%emt 00:00:07]} h6 {[%clk 00:08:31]} {[%emt 00:00:33]} 39. Bxb6 {[%clk
00:11:07]} {[%emt 00:00:06]} Rxb6 {[%emt 00:00:52]} 0-1

[Event "NM-Senior Hurtig 2018"]
[Site "Frimurer Logen, Norway"]
[Date "2018.11.10"]
[Round "1.5"]
[White "Hamre, Einar"]
[Black "Ringstad, Åge"]
[Result "1-0"]
[TimeControl "20 + 10"]
[WhiteElo "1778"]
[BlackElo "1461"]

1. e4 {[%clk 00:20:06]} {[%emt 00:00:03]} e6 {[%clk 00:20:04]} {[%emt
00:00:08]} 2. d4 {[%clk 00:20:12]} {[%emt 00:00:04]} b6 {[%clk 00:20:03]}
{[%emt 00:00:12]} 3. Nc3 {[%clk 00:20:19]} {[%emt 00:00:02]} Bb7 {[%clk
00:20:11]} {[%emt 00:00:03]} 4. Be3 {[%clk 00:20:18]} {[%emt 00:00:09]} Bb4
{[%clk 00:20:09]} {[%emt 00:00:12]} 5. f3 {[%clk 00:20:24]} {[%emt 00:00:04]}
Nf6 {[%clk 00:19:57]} {[%emt 00:00:22]} 6. a3 {[%clk 00:19:55]} {[%emt
00:00:39]} Be7 {[%clk 00:19:54]} {[%emt 00:00:13]} 7. Bd3 {[%clk 00:19:46]}
{[%emt 00:00:19]} O-O {[%clk 00:19:38]} {[%emt 00:00:27]} 8. e5 {[%clk
00:13:35]} {[%emt 00:06:20]} Nd5 {[%clk 00:19:13]} {[%emt 00:00:35]} 9. Nxd5
{[%clk 00:13:41]} {[%emt 00:00:04]} Bxd5 {[%clk 00:19:21]} {[%emt 00:00:02]} 10.
c4 {[%clk 00:13:30]} {[%emt 00:00:21]} Bb7 {[%clk 00:19:14]} {[%emt 00:00:17]}
11. Qc2 {[%clk 00:11:33]} {[%emt 00:02:08]} g6 {[%clk 00:18:12]} {[%emt
00:01:12]} 12. O-O-O {[%clk 00:11:18]} {[%emt 00:00:24]} Bg5 {[%clk 00:17:34]}
{[%emt 00:00:47]} 13. f4 {[%clk 00:11:12]} {[%emt 00:00:16]} Bh6 {[%clk
00:17:42]} {[%emt 00:00:02]} 14. Nf3 {[%clk 00:11:21]} {[%emt 00:00:01]} f5
{[%clk 00:16:35]} {[%emt 00:01:18]} 15. h4 {[%clk 00:10:07]} {[%emt 00:01:24]}
d6 {[%clk 00:16:25]} {[%emt 00:00:21]} 16. Ng5 {[%clk 00:09:40]} {[%emt
00:00:36]} Bxg5 {[%clk 00:15:24]} {[%emt 00:01:10]} 17. hxg5 {[%clk 00:09:46]}
{[%emt 00:00:05]} Rf7 {[%clk 00:15:32]} {[%emt 00:00:02]} 18. Rh6 {[%clk
00:09:17]} {[%emt 00:00:39]} Nd7 {[%clk 00:15:21]} {[%emt 00:00:21]} 19. Rdh1
{[%clk 00:07:20]} {[%emt 00:02:07]} dxe5 {[%clk 00:14:37]} {[%emt 00:00:55]} 20.
dxe5 {[%clk 00:07:17]} {[%emt 00:00:13]} Nf8 {[%clk 00:13:50]} {[%emt
00:00:57]} 21. R1h2 {[%clk 00:06:37]} {[%emt 00:00:49]} Qd7 {[%clk 00:12:53]}
{[%emt 00:01:08]} 22. R6h3 {[%clk 00:05:50]} {[%emt 00:00:57]} Rd8 {[%clk
00:12:31]} {[%emt 00:00:32]} 23. Bd2 {[%clk 00:05:45]} {[%emt 00:00:15]} a6
{[%clk 00:12:02]} {[%emt 00:00:39]} 24. Bc3 {[%clk 00:05:24]} {[%emt 00:00:30]}
c5 {[%clk 00:11:18]} {[%emt 00:00:54]} 25. Rh1 {[%clk 00:05:04]} {[%emt
00:00:31]} b5 {[%clk 00:10:46]} {[%emt 00:00:42]} 26. Qe2 {[%clk 00:04:08]}
{[%emt 00:01:05]} Bc6 {[%clk 00:09:00]} {[%emt 00:01:57]} 27. Ba5 {[%clk
00:03:41]} {[%emt 00:00:37]} Rb8 {[%clk 00:08:57]} {[%emt 00:00:13]} 28. Rd1
{[%clk 00:03:35]} {[%emt 00:00:17]} Qe8 {[%clk 00:08:52]} {[%emt 00:00:15]} 29.
g4 {[%clk 00:03:17]} {[%emt 00:00:27]} bxc4 {[%clk 00:08:54]} {[%emt 00:00:08]}
30. Bxc4 {[%clk 00:03:25]} {[%emt 00:00:03]} Bb5 {[%clk 00:08:45]} {[%emt
00:00:19]} 31. gxf5 {[%clk 00:03:18]} {[%emt 00:00:17]} Bxc4 {[%clk 00:07:45]}
{[%emt 00:01:11]} 32. Qxc4 {[%clk 00:03:26]} Qb5 {[%clk 00:07:47]} {[%emt
00:00:09]} 33. Qxb5 {[%clk 00:03:23]} {[%emt 00:00:13]} axb5 {[%clk 00:07:46]}
{[%emt 00:00:10]} 34. f6 {[%clk 00:02:49]} {[%emt 00:00:44]} b4 {[%clk
00:07:22]} {[%emt 00:00:35]} 35. axb4 {[%clk 00:02:52]} {[%emt 00:00:07]} cxb4
{[%clk 00:07:28]} {[%emt 00:00:03]} 36. Rd8 {[%clk 00:02:43]} {[%emt 00:00:19]}
Rxd8 {[%clk 00:07:14]} {[%emt 00:00:24]} 37. Bxd8 {[%clk 00:02:51]} {[%emt
00:00:02]} Rd7 {[%clk 00:07:11]} {[%emt 00:00:13]} 38. Be7 {[%clk 00:02:53]}
{[%emt 00:00:08]} Rc7+ {[%clk 00:06:29]} {[%emt 00:00:53]} 39. Kd2 {[%clk
00:02:49]} {[%emt 00:00:14]} Nd7 {[%clk 00:06:29]} {[%emt 00:00:10]} 40. Rd3
{[%clk 00:02:12]} {[%emt 00:00:47]} Kf7 {[%clk 00:06:16]} {[%emt 00:00:24]} 41.
Rd4 {[%clk 00:01:56]} {[%emt 00:00:16]} b3 {[%clk 00:06:17]} {[%emt 00:00:09]}
42. Kd3 {[%clk 00:01:54]} {[%emt 00:00:21]} Rb7 {[%clk 00:05:45]} {[%emt
00:00:42]} 43. Rc4 {[%clk 00:01:46]} {[%emt 00:00:18]} Nb6 {[%clk 00:05:22]}
{[%emt 00:00:33]} 44. Rb4 {[%clk 00:01:29]} {[%emt 00:00:27]} Rd7+ {[%clk
00:05:31]} 45. Ke4 {[%clk 00:01:26]} {[%emt 00:00:11]} Nc8 {[%clk 00:05:09]}
{[%emt 00:00:35]} 46. Bc5 {[%clk 00:01:26]} {[%emt 00:00:10]} Na7 {[%clk
00:04:31]} {[%emt 00:00:48]} 47. Rxb3 {[%clk 00:01:29]} {[%emt 00:00:07]} Nc6
{[%clk 00:04:39]} {[%emt 00:00:01]} 48. Rd3 {[%clk 00:01:27]} {[%emt 00:00:11]}
Rb7 {[%clk 00:04:43]} {[%emt 00:00:06]} 49. b3 {[%clk 00:01:25]} {[%emt
00:00:12]} Nb4 {[%clk 00:04:26]} {[%emt 00:00:27]} 50. Rd4 {[%clk 00:01:26]}
{[%emt 00:00:08]} Nd5 {[%clk 00:04:32]} {[%emt 00:00:05]} 51. Rd3 {[%clk
00:01:14]} {[%emt 00:00:22]} Rb5 {[%clk 00:04:23]} {[%emt 00:00:19]} 52. Bd6
{[%clk 00:01:11]} {[%emt 00:00:13]} Rb7 {[%clk 00:04:09]} {[%emt 00:00:24]} 53.
Rf3 {[%clk 00:01:11]} {[%emt 00:00:10]} Rb5 {[%clk 00:04:12]} {[%emt 00:00:07]}
54. Kd4 {[%clk 00:01:17]} {[%emt 00:00:03]} Ra5 {[%clk 00:04:09]} {[%emt
00:00:14]} 55. Kc4 {[%clk 00:01:19]} {[%emt 00:00:08]} Ra2 {[%clk 00:03:41]}
{[%emt 00:00:38]} 56. b4 {[%clk 00:01:17]} {[%emt 00:00:13]} Rb2 {[%clk
00:03:38]} {[%emt 00:00:12]} 57. Ra3 {[%clk 00:00:57]} {[%emt 00:00:30]} Rc2+
{[%clk 00:03:35]} {[%emt 00:00:13]} 58. Kd3 {[%clk 00:00:32]} {[%emt 00:00:35]}
Rc8 {[%clk 00:03:25]} {[%emt 00:00:20]} 59. Ra7+ {[%clk 00:00:39]} {[%emt
00:00:03]} Kg8 {[%clk 00:03:31]} {[%emt 00:00:05]} 60. f7+ {[%clk 00:00:47]}
{[%emt 00:00:02]} 1-0

[Event "NM-Senior Hurtig 2018"]
[Site "Frimurer Logen, Norway"]
[Date "2018.11.10"]
[Round "1.6"]
[White "Lind, Magne"]
[Black "Brobakken, Geir"]
[Result "0-1"]
[TimeControl "20 + 10"]
[WhiteElo "1365"]
[BlackElo "1759"]

1. Nf3 {[%clk 00:20:01]} {[%emt 00:00:07]} Nf6 {[%clk 00:20:05]} {[%emt
00:00:06]} 2. d4 {[%clk 00:19:59]} {[%emt 00:00:12]} d6 {[%clk 00:20:07]}
{[%emt 00:00:09]} 3. Nc3 {[%clk 00:19:23]} {[%emt 00:00:46]} g6 {[%clk
00:19:57]} {[%emt 00:00:20]} 4. e4 {[%clk 00:18:33]} {[%emt 00:00:59]} Bg7
{[%clk 00:19:35]} {[%emt 00:00:32]} 5. Bf4 {[%clk 00:16:50]} {[%emt 00:01:52]}
O-O {[%clk 00:18:35]} {[%emt 00:01:10]} 6. Be2 {[%clk 00:15:52]} {[%emt
00:01:08]} c6 {[%clk 00:17:08]} {[%emt 00:01:39]} 7. O-O {[%clk 00:15:01]}
{[%emt 00:01:00]} Bg4 {[%clk 00:16:52]} {[%emt 00:00:27]} 8. Be3 {[%clk
00:12:08]} {[%emt 00:03:02]} Nbd7 {[%clk 00:14:44]} {[%emt 00:02:18]} 9. e5
{[%clk 00:10:07]} {[%emt 00:02:12]} Bxf3 {[%clk 00:13:58]} {[%emt 00:00:56]} 10.
exf6 {[%clk 00:08:52]} {[%emt 00:01:25]} Bxe2 {[%clk 00:14:04]} {[%emt
00:00:03]} 11. Qxe2 {[%clk 00:07:59]} {[%emt 00:01:03]} Nxf6 {[%clk 00:13:18]}
{[%emt 00:00:56]} 12. f3 {[%clk 00:07:11]} {[%emt 00:00:59]} Re8 {[%clk
00:12:13]} {[%emt 00:01:15]} 13. Qf2 {[%clk 00:07:00]} {[%emt 00:00:20]} Qc7
{[%clk 00:11:17]} {[%emt 00:01:07]} 14. Ne2 {[%clk 00:06:01]} {[%emt 00:01:09]}
b5 {[%clk 00:09:26]} {[%emt 00:02:02]} 15. b3 {[%clk 00:05:25]} {[%emt
00:00:46]} Nd5 {[%clk 00:08:37]} {[%emt 00:00:59]} 16. Bd2 {[%clk 00:04:34]}
{[%emt 00:00:52]} c5 {[%clk 00:06:14]} {[%emt 00:02:33]} 17. c3 {[%clk
00:03:11]} {[%emt 00:01:42]} a6 {[%clk 00:05:06]} {[%emt 00:01:18]} 18. Rac1
{[%clk 00:02:51]} {[%emt 00:00:30]} c4 {[%clk 00:05:01]} {[%emt 00:00:16]} 19.
b4 {[%clk 00:02:40]} {[%emt 00:00:22]} a5 {[%clk 00:05:02]} {[%emt 00:00:09]}
20. a3 {[%clk 00:02:41]} {[%emt 00:00:09]} axb4 {[%clk 00:05:10]} {[%emt
00:00:02]} 21. axb4 {[%clk 00:02:39]} {[%emt 00:00:12]} Ra2 {[%clk 00:05:00]}
{[%emt 00:00:20]} 22. Qe1 {[%clk 00:01:53]} {[%emt 00:00:56]} Rea8 {[%clk
00:05:04]} {[%emt 00:00:06]} 23. Rb1 {[%clk 00:01:42]} {[%emt 00:00:21]} e5
{[%clk 00:03:44]} {[%emt 00:01:30]} 24. Bc1 {[%clk 00:01:25]} {[%emt 00:00:27]}
exd4 {[%clk 00:03:29]} {[%emt 00:00:24]} 25. cxd4 {[%clk 00:01:18]} {[%emt
00:00:18]} Re8 {[%clk 00:03:12]} {[%emt 00:00:26]} 0-1